[Event "*** MasterClass Titled Tuesday Blitz"]
[Site "Chess.com"]
[Date "2017.07.04"]
[Round "2"]
[White "Rodalquilar"]
[Black "Witik"]
[Result "1-0"]
[WhiteElo "2547"]
[BlackElo "2537"]
[TimeControl "180+2"]
[EndTime "13:24:57 PDT"]
[Termination "Rodalquilar won by resignation"]

1. d4 {[%clk 0:03:00.6]} 1... Nf6 {[%clk 0:02:59.4]} 2. Bf4 {[%clk 0:03:01.5]}
2... d6 {[%clk 0:02:58.1]} 3. Nf3 {[%clk 0:02:59.5]} 3... g6 {[%clk 0:02:59.6]}
4. h3 {[%clk 0:02:51.8]} 4... Bg7 {[%clk 0:03:00.5]} 5. e3 {[%clk 0:02:53]} 5...
O-O {[%clk 0:02:59.7]} 6. Be2 {[%clk 0:02:54.4]} 6... Nfd7 {[%clk 0:02:53.4]} 7.
e4 {[%clk 0:02:49.1]} 7... e5 {[%clk 0:02:54.7]} 8. Bg5 {[%clk 0:02:50.5]} 8...
f6 {[%clk 0:02:53.4]} 9. Be3 {[%clk 0:02:50.6]} 9... Nc6 {[%clk 0:02:54]} 10.
O-O {[%clk 0:02:45.7]} 10... Kh8 {[%clk 0:02:50.3]} 11. Nc3 {[%clk 0:02:41.6]}
11... f5 {[%clk 0:02:50.8]} 12. Bg5 {[%clk 0:02:41.5]} 12... Bf6 {[%clk
0:02:48.3]} 13. Bxf6+ {[%clk 0:02:40.4]} 13... Nxf6 {[%clk 0:02:46.1]} 14. dxe5
{[%clk 0:02:18.3]} 14... dxe5 {[%clk 0:02:44.5]} 15. Qxd8 {[%clk 0:02:14.1]}
15... Rxd8 {[%clk 0:02:44.2]} 16. Bb5 {[%clk 0:01:54.9]} 16... Nd4 {[%clk
0:02:19.7]} 17. Nxe5 {[%clk 0:01:56]} 17... Kg7 {[%clk 0:02:13.7]} 18. Rad1
{[%clk 0:01:37.4]} 18... c6 {[%clk 0:02:05]} 19. Ne2 {[%clk 0:01:14.3]} 19...
Nxe2+ {[%clk 0:01:51.7]} 20. Bxe2 {[%clk 0:01:16.2]} 20... Re8 {[%clk
0:01:52.6]} 21. f4 {[%clk 0:01:00.9]} 21... Nxe4 {[%clk 0:01:51.2]} 22. Bf3
{[%clk 0:01:01.4]} 22... Nf6 {[%clk 0:01:47.6]} 23. Rd6 {[%clk 0:00:37.2]} 23...
Be6 {[%clk 0:01:47.9]} 24. Re1 {[%clk 0:00:37.4]} 24... Bg8 {[%clk 0:01:38.7]}
25. g4 {[%clk 0:00:29.4]} 25... Re7 {[%clk 0:01:31.5]} 26. c4 {[%clk 0:00:18.3]}
26... Bxc4 {[%clk 0:01:24.3]} 27. Kf2 {[%clk 0:00:11.8]} 27... Bxa2 {[%clk
0:01:13.6]} 28. gxf5 {[%clk 0:00:12.3]} 28... Bf7 {[%clk 0:01:01.8]} 29. Rg1
{[%clk 0:00:07.2]} 29... Be8 {[%clk 0:00:52]} 30. h4 {[%clk 0:00:04.9]} 30... a5
{[%clk 0:00:48.4]} 31. h5 {[%clk 0:00:06.1]} 31... Ng8 {[%clk 0:00:44.6]} 32.
h6+ {[%clk 0:00:05.4]} 32... Nxh6 {[%clk 0:00:43.4]} 33. f6+ {[%clk 0:00:06.5]}
33... Kf8 {[%clk 0:00:42.4]} 34. fxe7+ {[%clk 0:00:08.4]} 34... Kxe7 {[%clk
0:00:43.5]} 35. Rgd1 {[%clk 0:00:09.2]} 35... Nf5 {[%clk 0:00:41.6]} 36. R6d2
{[%clk 0:00:09.6]} 36... a4 {[%clk 0:00:39.9]} 37. Re1 {[%clk 0:00:10.9]} 37...
Kf6 {[%clk 0:00:40.7]} 38. Nc4 {[%clk 0:00:12]} 38... h5 {[%clk 0:00:38.9]} 39.
Nd6 {[%clk 0:00:13.3]} 39... Bf7 {[%clk 0:00:35.1]} 40. Nxf7 {[%clk 0:00:13.4]}
40... Kxf7 {[%clk 0:00:36.2]} 41. Rd7+ {[%clk 0:00:14.7]} 41... Kf6 {[%clk
0:00:35.1]} 42. Rxb7 {[%clk 0:00:16]} 42... Nd4 {[%clk 0:00:34.2]} 43. Re4
{[%clk 0:00:14.7]} 43... Rd8 {[%clk 0:00:32.8]} 44. Rb4 {[%clk 0:00:14.5]} 44...
c5 {[%clk 0:00:32]} 45. Rxa4 {[%clk 0:00:15.8]} 45... Rd6 {[%clk 0:00:32.6]} 46.
Ra5 {[%clk 0:00:16.4]} 46... Rb6 {[%clk 0:00:30.4]} 47. Rxc5 {[%clk 0:00:16.4]}
47... Rxb2+ {[%clk 0:00:31.1]} 48. Be2 {[%clk 0:00:17.9]} 48... Nf5 {[%clk
0:00:27.5]} 49. Rc6+ {[%clk 0:00:17.5]} 49... Kg7 {[%clk 0:00:28.4]} 50. Ree6
{[%clk 0:00:17.2]} 50... Nd4 {[%clk 0:00:26.4]} 51. Rxg6+ {[%clk 0:00:18.1]}
51... Kh7 {[%clk 0:00:25.5]} 52. Rge6 {[%clk 0:00:14.4]} 52... Rxe2+ {[%clk
0:00:23.4]} 53. Rxe2 {[%clk 0:00:13.9]} 53... Nxc6 {[%clk 0:00:24.8]} 54. Kg3
{[%clk 0:00:12.8]} 54... Kg7 {[%clk 0:00:21.8]} 55. Re6 {[%clk 0:00:08.3]} 55...
Nd4 {[%clk 0:00:22.5]} 56. Rb6 {[%clk 0:00:09.4]} 56... Kf7 {[%clk 0:00:19.6]}
57. Kh4 {[%clk 0:00:09.6]} 57... Ne2 {[%clk 0:00:18.5]} 58. Kg5 {[%clk
0:00:06.3]} 58... Nd4 {[%clk 0:00:19.8]} 59. Kxh5 {[%clk 0:00:05.6]} 59... Ne6
{[%clk 0:00:20.9]} 60. Rxe6 {[%clk 0:00:06.5]} 60... Kxe6 {[%clk 0:00:21.7]} 61.
Kg6 {[%clk 0:00:08.4]} 61... Ke7 {[%clk 0:00:23]} 62. f5 {[%clk 0:00:08.5]} 1-0

[Event "*** MasterClass Titled Tuesday Blitz"]
[Site "Chess.com"]
[Date "2017.07.04"]
[Round "2"]
[White "AndrewDGreen"]
[Black "Abrito99"]
[Result "1/2-1/2"]
[WhiteElo "2211"]
[BlackElo "2307"]
[TimeControl "180+2"]
[EndTime "13:25:04 PDT"]
[Termination "Game drawn by repetition"]

1. d4 {[%clk 0:03:01.9]} 1... Nf6 {[%clk 0:03:00.7]} 2. Nf3 {[%clk 0:03:01.4]}
2... b6 {[%clk 0:03:00.2]} 3. Bf4 {[%clk 0:02:59.8]} 3... Bb7 {[%clk 0:03:01.3]}
4. e3 {[%clk 0:03:00.8]} 4... g6 {[%clk 0:03:02.7]} 5. Be2 {[%clk 0:02:59.1]}
5... Bg7 {[%clk 0:03:03.8]} 6. h3 {[%clk 0:03:00]} 6... O-O {[%clk 0:03:04.7]}
7. O-O {[%clk 0:03:00.9]} 7... d6 {[%clk 0:03:05.6]} 8. c3 {[%clk 0:03:00.3]}
8... Nbd7 {[%clk 0:03:04.8]} 9. Nbd2 {[%clk 0:03:00.4]} 9... Ne4 {[%clk
0:03:03.7]} 10. Bh2 {[%clk 0:02:54.6]} 10... e5 {[%clk 0:02:53.6]} 11. a4 {[%clk
0:02:51]} 11... a5 {[%clk 0:02:52.7]} 12. Re1 {[%clk 0:02:46.6]} 12... Qe7
{[%clk 0:02:50]} 13. Qc2 {[%clk 0:02:42.8]} 13... f5 {[%clk 0:02:48.4]} 14. dxe5
{[%clk 0:02:31.4]} 14... dxe5 {[%clk 0:02:43.4]} 15. Qb3+ {[%clk 0:02:27.4]}
15... Kh8 {[%clk 0:02:42.8]} 16. Nxe4 {[%clk 0:02:19.4]} 16... fxe4 {[%clk
0:02:43]} 17. Nd2 {[%clk 0:02:06.4]} 17... Nc5 {[%clk 0:02:40.7]} 18. Qc2 {[%clk
0:01:56.3]} 18... Qg5 {[%clk 0:02:06.7]} 19. Bg3 {[%clk 0:01:51.6]} 19... Rad8
{[%clk 0:01:50.6]} 20. Rad1 {[%clk 0:01:42]} 20... Qf5 {[%clk 0:01:37.7]} 21.
Bg4 {[%clk 0:01:34.9]} 21... Qf7 {[%clk 0:01:36.6]} 22. Be2 {[%clk 0:01:17.5]}
22... Bd5 {[%clk 0:01:02.5]} 23. Rf1 {[%clk 0:01:09.5]} 23... Qe8 {[%clk
0:01:01.3]} 24. b3 {[%clk 0:00:53.1]} 24... Qe6 {[%clk 0:00:56.7]} 25. Bc4
{[%clk 0:00:42.6]} 25... Bxc4 {[%clk 0:00:56.4]} 26. Nxc4 {[%clk 0:00:44.5]}
26... Rd3 {[%clk 0:00:43.6]} 27. Nb2 {[%clk 0:00:33.9]} 27... Rdd8 {[%clk
0:00:24]} 28. b4 {[%clk 0:00:22.9]} 28... axb4 {[%clk 0:00:18.8]} 29. cxb4
{[%clk 0:00:24]} 29... Qb3 {[%clk 0:00:20.1]} 30. Rc1 {[%clk 0:00:17.9]} 30...
Qxb4 {[%clk 0:00:15.8]} 31. Nc4 {[%clk 0:00:14.2]} 31... Nd3 {[%clk 0:00:13.5]}
32. Rb1 {[%clk 0:00:13.6]} 32... Qc5 {[%clk 0:00:14.8]} 33. Qa2 {[%clk
0:00:11.5]} 33... Ra8 {[%clk 0:00:13]} 34. Qb3 {[%clk 0:00:11.8]} 34... Rfb8
{[%clk 0:00:10.8]} 35. Rfd1 {[%clk 0:00:10.5]} 35... Rd8 {[%clk 0:00:10.2]} 36.
Rd2 {[%clk 0:00:09.9]} 36... Rd5 {[%clk 0:00:05.5]} 37. Rbd1 {[%clk 0:00:10.3]}
37... Rad8 {[%clk 0:00:06.8]} 38. Bh4 {[%clk 0:00:09.2]} 38... R8d7 {[%clk
0:00:07.3]} 39. Bg3 {[%clk 0:00:09.5]} 39... Nb4 {[%clk 0:00:06.7]} 40. Rxd5
{[%clk 0:00:09.1]} 40... Rxd5 {[%clk 0:00:07.8]} 41. Rxd5 {[%clk 0:00:09.3]}
41... Nxd5 {[%clk 0:00:09]} 42. Nxe5 {[%clk 0:00:07.9]} 42... Bxe5 {[%clk
0:00:07.4]} 43. Bxe5+ {[%clk 0:00:09.8]} 43... Kg8 {[%clk 0:00:08.4]} 44. Bd4
{[%clk 0:00:09.1]} 44... Qc1+ {[%clk 0:00:07]} 45. Kh2 {[%clk 0:00:09.6]} 45...
Qc6 {[%clk 0:00:08.4]} 46. a5 {[%clk 0:00:08.9]} 46... Qd6+ {[%clk 0:00:08.8]}
47. g3 {[%clk 0:00:08.6]} 47... bxa5 {[%clk 0:00:09.8]} 48. Qb8+ {[%clk
0:00:08.7]} 48... Qf8 {[%clk 0:00:08.4]} 49. Qb7 {[%clk 0:00:06.9]} 49... Qxf2+
{[%clk 0:00:08.1]} 50. Kh1 {[%clk 0:00:07.9]} 50... Qf3+ {[%clk 0:00:08]} 51.
Kh2 {[%clk 0:00:09]} 51... Qf7 {[%clk 0:00:07.5]} 52. Qc8+ {[%clk 0:00:07.9]}
52... Qf8 {[%clk 0:00:05.9]} 53. Qe6+ {[%clk 0:00:08.6]} 53... Qf7 {[%clk
0:00:07.1]} 54. Qc8+ {[%clk 0:00:09.4]} 54... Qf8 {[%clk 0:00:07.9]} 55. Qe6+
{[%clk 0:00:10.1]} 55... Qf7 {[%clk 0:00:07.7]} 56. Qc8+ {[%clk 0:00:09.9]}
1/2-1/2

[Event "*** MasterClass Titled Tuesday Blitz"]
[Site "Chess.com"]
[Date "2017.07.04"]
[Round "2"]
[White "AllStarShark"]
[Black "Alliswell998"]
[Result "1/2-1/2"]
[WhiteElo "2298"]
[BlackElo "2299"]
[TimeControl "180+2"]
[EndTime "13:29:20 PDT"]
[Termination "Game drawn by 50-move rule"]

1. d4 {[%clk 0:03:01.9]} 1... Nf6 {[%clk 0:02:59.9]} 2. Bg5 {[%clk 0:03:01.6]}
2... Ne4 {[%clk 0:03:00.6]} 3. Bf4 {[%clk 0:03:00.9]} 3... c5 {[%clk 0:03:00.3]}
4. f3 {[%clk 0:03:01.5]} 4... Qa5+ {[%clk 0:02:58.6]} 5. c3 {[%clk 0:03:01.7]}
5... Nf6 {[%clk 0:02:59.6]} 6. d5 {[%clk 0:03:01.9]} 6... d6 {[%clk 0:02:55.8]}
7. e4 {[%clk 0:03:02.2]} 7... g6 {[%clk 0:02:56.2]} 8. Bd3 {[%clk 0:02:56.1]}
8... Bg7 {[%clk 0:02:56.6]} 9. Ne2 {[%clk 0:02:56.2]} 9... a6 {[%clk 0:02:57.1]}
10. O-O {[%clk 0:02:52.2]} 10... b5 {[%clk 0:02:55.8]} 11. c4 {[%clk 0:02:51.1]}
11... O-O {[%clk 0:02:50.4]} 12. Bd2 {[%clk 0:02:47.6]} 12... Qb6 {[%clk
0:02:49.3]} 13. Qc2 {[%clk 0:02:32.7]} 13... Nbd7 {[%clk 0:02:42.4]} 14. Nbc3
{[%clk 0:02:22.6]} 14... Ne5 {[%clk 0:02:31.8]} 15. b3 {[%clk 0:02:14.4]} 15...
Bd7 {[%clk 0:02:12.8]} 16. Rab1 {[%clk 0:02:08.2]} 16... Qa7 {[%clk 0:02:11.9]}
17. h3 {[%clk 0:02:06.4]} 17... Rab8 {[%clk 0:02:08.9]} 18. Nd1 {[%clk 0:02:04]}
18... Rb7 {[%clk 0:01:49.2]} 19. Ne3 {[%clk 0:02:03]} 19... Rfb8 {[%clk
0:01:49.2]} 20. f4 {[%clk 0:01:58.1]} 20... Nxd3 {[%clk 0:01:49.4]} 21. Qxd3
{[%clk 0:01:57.8]} 21... bxc4 {[%clk 0:01:49]} 22. Nxc4 {[%clk 0:01:57.4]} 22...
Bb5 {[%clk 0:01:31.5]} 23. Bc3 {[%clk 0:01:46.4]} 23... h5 {[%clk 0:00:49.5]}
24. e5 {[%clk 0:01:42.5]} 24... Ne8 {[%clk 0:00:44.8]} 25. e6 {[%clk 0:01:41.5]}
25... Bxc3 {[%clk 0:00:43]} 26. Nxc3 {[%clk 0:01:40.1]} 26... f5 {[%clk
0:00:41.9]} 27. g4 {[%clk 0:01:35.3]} 27... Ng7 {[%clk 0:00:41.4]} 28. Ne2
{[%clk 0:01:07]} 28... hxg4 {[%clk 0:00:39.2]} 29. hxg4 {[%clk 0:01:07.2]} 29...
Bxc4 {[%clk 0:00:40.1]} 30. Qxc4 {[%clk 0:01:06.6]} 30... fxg4 {[%clk 0:00:33]}
31. f5 {[%clk 0:00:52.1]} 31... Rb4 {[%clk 0:00:29.8]} 32. Qc1 {[%clk
0:00:48.7]} 32... gxf5 {[%clk 0:00:28.5]} 33. Qg5 {[%clk 0:00:46.3]} 33... c4+
{[%clk 0:00:28.8]} 34. Kg2 {[%clk 0:00:46.5]} 34... Rf8 {[%clk 0:00:24.6]} 35.
Nf4 {[%clk 0:00:41.5]} 35... Qe3 {[%clk 0:00:23.3]} 36. Rbe1 {[%clk 0:00:41.6]}
36... Qd2+ {[%clk 0:00:22.7]} 37. Re2 {[%clk 0:00:42]} 37... Qd4 {[%clk
0:00:22.8]} 38. Ng6 {[%clk 0:00:34.7]} 38... Qxd5+ {[%clk 0:00:16.4]} 39. Kh2
{[%clk 0:00:23.5]} 39... Re8 {[%clk 0:00:17.4]} 40. Qxe7 {[%clk 0:00:19.7]}
40... Rxe7 {[%clk 0:00:15.6]} 41. Nxe7+ {[%clk 0:00:21.6]} 41... Kf8 {[%clk
0:00:17.5]} 42. Nxd5 {[%clk 0:00:22.5]} 42... Rb5 {[%clk 0:00:16.3]} 43. e7+
{[%clk 0:00:22.5]} 43... Kf7 {[%clk 0:00:16.1]} 44. Nc7 {[%clk 0:00:17.8]} 44...
Rb8 {[%clk 0:00:14.9]} 45. e8=Q+ {[%clk 0:00:18.7]} 45... Nxe8 {[%clk 0:00:16]}
46. Nxe8 {[%clk 0:00:19.8]} 46... cxb3 {[%clk 0:00:16.2]} 47. Rxf5+ {[%clk
0:00:20.3]} 47... Kg6 {[%clk 0:00:17]} 48. Rf6+ {[%clk 0:00:20.7]} 48... Kg5
{[%clk 0:00:18.1]} 49. Rfe6 {[%clk 0:00:21.4]} 49... b2 {[%clk 0:00:17.7]} 50.
Re1 {[%clk 0:00:21.7]} 50... b1=Q {[%clk 0:00:18.5]} 51. Rxb1 {[%clk 0:00:22.8]}
51... Rxb1 {[%clk 0:00:20.4]} 52. Nxd6 {[%clk 0:00:23.5]} 52... Kf4 {[%clk
0:00:18.2]} 53. Nc4 {[%clk 0:00:19.8]} 53... g3+ {[%clk 0:00:16.7]} 54. Kg2
{[%clk 0:00:19.6]} 54... Rc1 {[%clk 0:00:18.2]} 55. Rf6+ {[%clk 0:00:15.1]}
55... Kg5 {[%clk 0:00:18.9]} 56. Rc6 {[%clk 0:00:15.7]} 56... Rc2+ {[%clk
0:00:19.4]} 57. Kxg3 {[%clk 0:00:16]} 57... Rxa2 {[%clk 0:00:20.9]} 58. Kf3
{[%clk 0:00:17]} 58... Kf5 {[%clk 0:00:21.2]} 59. Ke3 {[%clk 0:00:17.4]} 59...
Ra1 {[%clk 0:00:21.9]} 60. Kd4 {[%clk 0:00:18]} 60... Kf4 {[%clk 0:00:21.5]} 61.
Rf6+ {[%clk 0:00:18]} 61... Kg5 {[%clk 0:00:22.6]} 62. Rf8 {[%clk 0:00:19.8]}
62... a5 {[%clk 0:00:23.4]} 63. Ra8 {[%clk 0:00:20.4]} 63... a4 {[%clk
0:00:24.5]} 64. Kc3 {[%clk 0:00:21.2]} 64... Kf4 {[%clk 0:00:24]} 65. Kb2 {[%clk
0:00:21.4]} 65... Rh1 {[%clk 0:00:23.3]} 66. Rxa4 {[%clk 0:00:21.8]} 66... Ke4
{[%clk 0:00:24.6]} 67. Kc3 {[%clk 0:00:21.5]} 67... Kd5 {[%clk 0:00:25.7]} 68.
Ne3+ {[%clk 0:00:21.6]} 68... Kc5 {[%clk 0:00:26.9]} 69. Ra5+ {[%clk 0:00:22.4]}
69... Kc6 {[%clk 0:00:27.8]} 70. Rg5 {[%clk 0:00:23.6]} 70... Rc1+ {[%clk
0:00:29.1]} 71. Kd4 {[%clk 0:00:24.2]} 71... Re1 {[%clk 0:00:29.8]} 72. Nc4
{[%clk 0:00:23]} 72... Rd1+ {[%clk 0:00:30.3]} 73. Kc3 {[%clk 0:00:23.6]} 73...
Rc1+ {[%clk 0:00:31.4]} 74. Kb3 {[%clk 0:00:24.4]} 74... Rb1+ {[%clk 0:00:32.5]}
75. Nb2 {[%clk 0:00:25.3]} 75... Rf1 {[%clk 0:00:33.1]} 76. Kb4 {[%clk 0:00:24]}
76... Rb1 {[%clk 0:00:33]} 77. Kc3 {[%clk 0:00:24.1]} 77... Rc1+ {[%clk
0:00:33.9]} 78. Kd3 {[%clk 0:00:23.6]} 78... Rb1 {[%clk 0:00:34.8]} 79. Nc4
{[%clk 0:00:23.7]} 79... Rd1+ {[%clk 0:00:35.6]} 80. Ke4 {[%clk 0:00:24.2]}
80... Re1+ {[%clk 0:00:36.3]} 81. Ne3 {[%clk 0:00:24.9]} 81... Kd6 {[%clk
0:00:36.2]} 82. Rg6+ {[%clk 0:00:24.3]} 82... Kc5 {[%clk 0:00:36.7]} 83. Rg8
{[%clk 0:00:22.8]} 83... Ra1 {[%clk 0:00:34.5]} 84. Rc8+ {[%clk 0:00:22.8]}
84... Kd6 {[%clk 0:00:35]} 85. Nc4+ {[%clk 0:00:23.1]} 85... Kd7 {[%clk
0:00:35.5]} 86. Rc5 {[%clk 0:00:23.6]} 86... Ke6 {[%clk 0:00:34.8]} 87. Re5+
{[%clk 0:00:23.7]} 87... Kd7 {[%clk 0:00:35.4]} 88. Kd4 {[%clk 0:00:22.8]} 88...
Rd1+ {[%clk 0:00:36.5]} 89. Kc5 {[%clk 0:00:23.3]} 89... Rc1 {[%clk 0:00:37.3]}
90. Rh5 {[%clk 0:00:20.5]} 90... Ke6 {[%clk 0:00:34.2]} 91. Rh6+ {[%clk
0:00:19.4]} 91... Kf5 {[%clk 0:00:32.4]} 92. Kd5 {[%clk 0:00:18.2]} 92... Rd1+
{[%clk 0:00:32.7]} 93. Kc6 {[%clk 0:00:18.8]} 93... Rc1 {[%clk 0:00:33.9]} 94.
Kb5 {[%clk 0:00:19.2]} 94... Rb1+ {[%clk 0:00:34.8]} 95. Kc5 {[%clk 0:00:20.2]}
95... Rc1 {[%clk 0:00:35.9]} 96. Rh5+ {[%clk 0:00:20.6]} 96... Ke4 {[%clk
0:00:35.4]} 97. Rh4+ {[%clk 0:00:21.1]} 97... Kf5 {[%clk 0:00:36.2]} 98. Kd5
{[%clk 0:00:21.5]} 98... Rd1+ {[%clk 0:00:37.5]} 99. Kc6 {[%clk 0:00:22]} 99...
Rc1 {[%clk 0:00:38.6]} 100. Kd6 {[%clk 0:00:22.7]} 100... Rd1+ {[%clk
0:00:38.3]} 101. Ke7 {[%clk 0:00:23.1]} 101... Re1+ {[%clk 0:00:38.9]} 102. Kf7
{[%clk 0:00:23.3]} 102... Kg5 {[%clk 0:00:38.7]} 103. Rd4 {[%clk 0:00:23.1]}
103... Rf1+ {[%clk 0:00:39.2]} 104. Kg7 {[%clk 0:00:22.9]} 104... Ra1 {[%clk
0:00:38.2]} 105. Rd5+ {[%clk 0:00:20.6]} 105... Kf4 {[%clk 0:00:38.8]} 106. Nd2
{[%clk 0:00:21.1]} 106... Ke3 {[%clk 0:00:38.2]} 107. Nb3 {[%clk 0:00:18.8]}
107... Ra6 {[%clk 0:00:37.2]} 108. Kf7 {[%clk 0:00:16.4]} 108... Rh6 {[%clk
0:00:33.7]} 109. Rg5 {[%clk 0:00:14.3]} 109... Rb6 {[%clk 0:00:33.9]} 110. Nc5
{[%clk 0:00:13.1]} 110... Rc6 {[%clk 0:00:30]} 111. Ke7 {[%clk 0:00:10.6]}
111... Rb6 {[%clk 0:00:30.1]} 112. Kd7 {[%clk 0:00:10.4]} 112... Rf6 {[%clk
0:00:29.4]} 113. Ne6 {[%clk 0:00:10.5]} 113... Rf1 {[%clk 0:00:27.8]} 114. Kd6
{[%clk 0:00:13.1]} 114... Ra1 {[%clk 0:00:27.3]} 115. Rg3+ {[%clk 0:00:11.6]}
115... Ke4 {[%clk 0:00:26.7]} 116. Rb3 {[%clk 0:00:13.5]} 116... Rd1+ {[%clk
0:00:25.4]} 117. Ke7 {[%clk 0:00:13.7]} 117... Rf1 {[%clk 0:00:23.6]} 118. Rb4+
{[%clk 0:00:14]} 118... Kd5 {[%clk 0:00:23.1]} 119. Rd4+ {[%clk 0:00:14.3]}
119... Ke5 {[%clk 0:00:24]} 120. Rd2 {[%clk 0:00:13.6]} 120... Ra1 {[%clk
0:00:22.8]} 121. Re2+ {[%clk 0:00:13.6]} 121... Kd5 {[%clk 0:00:23]} 122. Nf4+
{[%clk 0:00:14]} 122... Kd4 {[%clk 0:00:24.4]} 123. Kf6 {[%clk 0:00:14.6]}
123... Ra6+ {[%clk 0:00:22.9]} 124. Kf5 {[%clk 0:00:14.8]} 124... Ra5+ {[%clk
0:00:24.3]} 125. Kg4 {[%clk 0:00:15.5]} 1/2-1/2

[Event "*** MasterClass Titled Tuesday Blitz"]
[Site "Chess.com"]
[Date "2017.07.04"]
[Round "3"]
[White "Cryptochess"]
[Black "aNaartjieZA"]
[Result "1-0"]
[WhiteElo "2492"]
[BlackElo "2316"]
[TimeControl "180+2"]
[EndTime "13:32:25 PDT"]
[Termination "Cryptochess won by resignation"]

1. e4 {[%clk 0:03:01.9]} 1... e6 {[%clk 0:03:00.3]} 2. d4 {[%clk 0:03:00.4]}
2... d5 {[%clk 0:03:01.2]} 3. Nc3 {[%clk 0:03:00.6]} 3... Bb4 {[%clk 0:03:01.5]}
4. e5 {[%clk 0:03:01.2]} 4... c5 {[%clk 0:03:02]} 5. a3 {[%clk 0:03:01.3]} 5...
Bxc3+ {[%clk 0:03:02.6]} 6. bxc3 {[%clk 0:03:03.2]} 6... Qc7 {[%clk 0:03:02.5]}
7. Qg4 {[%clk 0:03:03.1]} 7... Ne7 {[%clk 0:03:03.1]} 8. Qxg7 {[%clk 0:03:04.6]}
8... Rg8 {[%clk 0:03:01.6]} 9. Qxh7 {[%clk 0:03:06.2]} 9... cxd4 {[%clk
0:03:02.4]} 10. Ne2 {[%clk 0:03:07.8]} 10... Nbc6 {[%clk 0:03:03.2]} 11. f4
{[%clk 0:03:09.4]} 11... dxc3 {[%clk 0:03:03.6]} 12. Qd3 {[%clk 0:03:11.1]}
12... d4 {[%clk 0:03:04.2]} 13. Ng3 {[%clk 0:03:12.2]} 13... Bd7 {[%clk
0:02:59.9]} 14. Be2 {[%clk 0:03:13.4]} 14... O-O-O {[%clk 0:02:59.9]} 15. Bf3
{[%clk 0:03:14.9]} 15... Kb8 {[%clk 0:02:51]} 16. O-O {[%clk 0:03:13.3]} 16...
Nf5 {[%clk 0:02:46.4]} 17. Nxf5 {[%clk 0:03:12.8]} 17... exf5 {[%clk 0:02:47.4]}
18. Rb1 {[%clk 0:03:05.4]} 18... Be6 {[%clk 0:02:46.4]} 19. a4 {[%clk 0:02:56]}
19... Ka8 {[%clk 0:02:46]} 20. Ba3 {[%clk 0:02:52]} 20... Nxe5 {[%clk
0:02:45.6]} 21. fxe5 {[%clk 0:02:27.3]} 21... Bc4 {[%clk 0:02:46.1]} 22. Rxb7
{[%clk 0:02:12.7]} 1-0

[Event "*** MasterClass Titled Tuesday Blitz"]
[Site "Chess.com"]
[Date "2017.07.04"]
[Round "3"]
[White "ehrenfeld"]
[Black "jk13"]
[Result "1-0"]
[WhiteElo "2420"]
[BlackElo "2398"]
[TimeControl "180+2"]
[EndTime "13:32:49 PDT"]
[Termination "ehrenfeld won by resignation"]

1. e4 {[%clk 0:03:01.9]} 1... e5 {[%clk 0:03:00.8]} 2. Nc3 {[%clk 0:03:02.1]}
2... Nf6 {[%clk 0:03:00.9]} 3. f4 {[%clk 0:03:03.1]} 3... d5 {[%clk 0:03:01.6]}
4. fxe5 {[%clk 0:03:03.9]} 4... Nxe4 {[%clk 0:03:02.8]} 5. Qf3 {[%clk
0:03:05.4]} 5... Nxc3 {[%clk 0:02:59.2]} 6. bxc3 {[%clk 0:03:06.4]} 6... Be6
{[%clk 0:02:56.9]} 7. d4 {[%clk 0:03:06.8]} 7... c5 {[%clk 0:02:52.9]} 8. Bd3
{[%clk 0:03:06.4]} 8... Nc6 {[%clk 0:02:52.9]} 9. Ne2 {[%clk 0:03:06.6]} 9...
Be7 {[%clk 0:02:21.6]} 10. O-O {[%clk 0:03:05.6]} 10... O-O {[%clk 0:02:22.8]}
11. Be3 {[%clk 0:03:00.3]} 11... Qd7 {[%clk 0:02:17]} 12. Nf4 {[%clk 0:02:58.4]}
12... Rac8 {[%clk 0:02:06.2]} 13. Qh5 {[%clk 0:02:47.1]} 13... g6 {[%clk
0:01:56.9]} 14. Qh6 {[%clk 0:02:42.3]} 14... cxd4 {[%clk 0:01:45.2]} 15. Nh5
{[%clk 0:02:39.1]} 1-0

[Event "*** MasterClass Titled Tuesday Blitz"]
[Site "Chess.com"]
[Date "2017.07.04"]
[Round "3"]
[White "JammyDodger91"]
[Black "Rating-Schmating"]
[Result "1-0"]
[WhiteElo "2288"]
[BlackElo "2235"]
[TimeControl "180+2"]
[EndTime "13:32:54 PDT"]
[Termination "JammyDodger91 won by checkmate"]

1. e4 {[%clk 0:03:01.9]} 1... e6 {[%clk 0:03:00.3]} 2. d4 {[%clk 0:03:01.8]}
2... d5 {[%clk 0:03:00.9]} 3. Nc3 {[%clk 0:03:02.9]} 3... Bb4 {[%clk 0:03:01.4]}
4. e5 {[%clk 0:03:03.7]} 4... c5 {[%clk 0:03:02.5]} 5. a3 {[%clk 0:03:04.6]}
5... Bxc3+ {[%clk 0:02:56.5]} 6. bxc3 {[%clk 0:03:06.5]} 6... Qc7 {[%clk
0:02:58.3]} 7. Qg4 {[%clk 0:03:06.5]} 7... f5 {[%clk 0:02:57.9]} 8. Qg3 {[%clk
0:03:04.6]} 8... Nc6 {[%clk 0:02:58.7]} 9. Ne2 {[%clk 0:02:54]} 9... cxd4 {[%clk
0:02:57.9]} 10. cxd4 {[%clk 0:02:53.4]} 10... Nge7 {[%clk 0:02:58.7]} 11. c3
{[%clk 0:02:48.3]} 11... O-O {[%clk 0:02:57.2]} 12. h4 {[%clk 0:02:48.7]} 12...
Bd7 {[%clk 0:02:52.7]} 13. h5 {[%clk 0:02:47.7]} 13... Na5 {[%clk 0:02:43.7]}
14. Nf4 {[%clk 0:02:40.6]} 14... Nb3 {[%clk 0:02:42.9]} 15. Rb1 {[%clk
0:02:40.2]} 15... Nxc1 {[%clk 0:02:43.9]} 16. Rxc1 {[%clk 0:02:42.1]} 16... Rac8
{[%clk 0:02:44.3]} 17. Rh3 {[%clk 0:02:32.4]} 17... Kh8 {[%clk 0:02:42.4]} 18.
Qg5 {[%clk 0:02:22.5]} 18... Ng8 {[%clk 0:02:37.5]} 19. Ng6+ {[%clk 0:02:13.6]}
19... hxg6 {[%clk 0:02:32.1]} 20. hxg6+ {[%clk 0:02:15.5]} 20... Nh6 {[%clk
0:02:31.9]} 21. Rxh6+ {[%clk 0:02:15.6]} 21... Kg8 {[%clk 0:02:31]} 22. Rh8+
{[%clk 0:02:14.7]} 22... Kxh8 {[%clk 0:02:32.2]} 23. Qh5+ {[%clk 0:02:14.5]}
23... Kg8 {[%clk 0:02:33.6]} 24. Qh7# {[%clk 0:02:14.8]} 1-0